[Event "Titled Tuesday Blitz May 16 Late 2023"]
[White "Alexikov, Alexander"]
[Black "Chessadiction1990"]
[WhiteFideId "14103958"]
[WhiteElo "2186"]
[BlackElo "2138"]
[Result "1-0"]
[Round "08"]
[TimeControl "180+2"]
[Date "2023.05.16"]
[WhiteClock "0:01:23"]
[BlackClock "0:00:00"]

1. e4 {[%clk 0:03:00]}  c5 {[%clk 0:02:59]} 2. Nf3 {[%clk 0:03:00]}  d6 {[%clk 0:03:00]} 3. d4 {[%clk 0:02:59]}  cxd4 {[%clk 0:03:01]} 4. Nxd4 {[%clk 0:02:59]}  Nf6 {[%clk 0:03:01]} 5. Nc3 {[%clk 0:02:59]}  g6 {[%clk 0:03:02]} 6. Be3 {[%clk 0:02:58]}  Bg7 {[%clk 0:03:02]} 7. f3 {[%clk 0:02:58]}  O-O {[%clk 0:03:02]} 8. Qd2 {[%clk 0:02:58]}  Nc6 {[%clk 0:02:58]} 9. O-O-O {[%clk 0:02:57]}  d5 {[%clk 0:02:56]} 10. Qe1 {[%clk 0:02:57]}  e5 {[%clk 0:01:58]} 11. Nxc6 {[%clk 0:02:56]}  bxc6 {[%clk 0:01:59]} 12. exd5 {[%clk 0:02:56]}  Nxd5 {[%clk 0:01:58]} 13. Bc4 {[%clk 0:02:44]}  Be6 {[%clk 0:01:45]} 14. Ne4 {[%clk 0:02:43]}  f5 {[%clk 0:01:00]} 15. Ng5 {[%clk 0:02:34]}  Qf6 {[%clk 0:00:53]} 16. Nxe6 {[%clk 0:02:28]}  Qxe6 {[%clk 0:00:54]} 17. Bc5 {[%clk 0:02:22]}  Rfd8 {[%clk 0:00:53]} 18. Bb3 {[%clk 0:02:14]}  Kh8 {[%clk 0:00:45]} 19. h4 {[%clk 0:02:11]}  Qf6 {[%clk 0:00:44]} 20. h5 {[%clk 0:02:04]}  g5 {[%clk 0:00:38]} 21. h6 {[%clk 0:02:02]}  Bxh6 {[%clk 0:00:33]} 22. Bxd5 {[%clk 0:01:36]}  Rxd5 {[%clk 0:00:24]} 23. Rxd5 {[%clk 0:01:34]}  cxd5 {[%clk 0:00:24]} 24. Rxh6 {[%clk 0:01:31]}  Qxh6 {[%clk 0:00:22]} 25. Qxe5+ {[%clk 0:01:30]}  Qg7 {[%clk 0:00:20]} 26. Qxd5 {[%clk 0:01:26]}  Rf8 {[%clk 0:00:00]} 27. Bd4 {[%clk 0:01:23]} 1-0


[Site "https://www.chess.com"]

[Event "Titled Tuesday Blitz May 16 Late 2023"]
[White "ibove"]
[Black "Manu_ChessExcelsior"]
[WhiteElo "2274"]
[BlackElo "2057"]
[Result "1-0"]
[Round "08"]
[TimeControl "180+2"]
[Date "2023.05.16"]
[WhiteClock "0:01:15"]
[BlackClock "0:00:00"]

1. d4 {[%clk 0:03:00]}  d5 {[%clk 0:02:59]} 2. Nf3 {[%clk 0:03:01]}  e6 {[%clk 0:02:57]} 3. Bf4 {[%clk 0:03:01]}  c5 {[%clk 0:02:43]} 4. c3 {[%clk 0:03:00]}  Nc6 {[%clk 0:02:44]} 5. e3 {[%clk 0:02:59]}  Qb6 {[%clk 0:02:40]} 6. Qb3 {[%clk 0:02:59]}  c4 {[%clk 0:02:41]} 7. Qc2 {[%clk 0:02:57]}  Nf6 {[%clk 0:02:26]} 8. Nbd2 {[%clk 0:02:58]}  Be7 {[%clk 0:02:26]} 9. Be2 {[%clk 0:02:57]}  O-O {[%clk 0:02:27]} 10. O-O {[%clk 0:02:57]}  Ne8 {[%clk 0:02:24]} 11. h3 {[%clk 0:02:55]}  Bd6 {[%clk 0:02:24]} 12. Bxd6 {[%clk 0:02:54]}  Nxd6 {[%clk 0:02:25]} 13. b3 {[%clk 0:02:53]}  cxb3 {[%clk 0:02:22]} 14. axb3 {[%clk 0:02:54]}  a6 {[%clk 0:02:21]} 15. Rab1 {[%clk 0:02:45]}  Bd7 {[%clk 0:02:17]} 16. e4 {[%clk 0:02:44]}  dxe4 {[%clk 0:02:16]} 17. Nxe4 {[%clk 0:02:45]}  Nxe4 {[%clk 0:02:15]} 18. Qxe4 {[%clk 0:02:46]}  Ne7 {[%clk 0:02:12]} 19. Bd3 {[%clk 0:02:35]}  Nf5 {[%clk 0:01:45]} 20. c4 {[%clk 0:02:26]}  g6 {[%clk 0:01:18]} 21. g4 {[%clk 0:02:20]}  Nd6 {[%clk 0:01:11]} 22. Qf4 {[%clk 0:02:18]}  f6 {[%clk 0:01:10]} 23. c5 {[%clk 0:02:14]}  e5 {[%clk 0:01:00]} 24. Qh6 {[%clk 0:02:01]}  Nf7 {[%clk 0:00:55]} 25. Qxg6+ {[%clk 0:01:45]}  hxg6 {[%clk 0:00:54]} 26. cxb6 {[%clk 0:01:46]}  Bc6 {[%clk 0:00:46]} 27. Nh4 {[%clk 0:01:44]}  e4 {[%clk 0:00:44]} 28. Bc4 {[%clk 0:01:42]}  Kg7 {[%clk 0:00:44]} 29. d5 {[%clk 0:01:39]}  Bd7 {[%clk 0:00:41]} 30. Rbe1 {[%clk 0:01:38]}  Ng5 {[%clk 0:00:41]} 31. Kh2 {[%clk 0:01:29]}  Rh8 {[%clk 0:00:41]} 32. Kg3 {[%clk 0:01:29]}  Rh7 {[%clk 0:00:16]} 33. f4 {[%clk 0:01:28]}  exf3 {[%clk 0:00:15]} 34. Nxf3 {[%clk 0:01:28]}  Rxh3+ {[%clk 0:00:14]} 35. Kg2 {[%clk 0:01:28]}  Bxg4 {[%clk 0:00:12]} 36. Nxg5 {[%clk 0:01:28]}  fxg5 {[%clk 0:00:12]} 37. Re7+ {[%clk 0:01:28]}  Kh6 {[%clk 0:00:11]} 38. d6 {[%clk 0:01:28]}  Rh8 {[%clk 0:00:09]} 39. Rff7 {[%clk 0:01:28]}  Bf5 {[%clk 0:00:08]} 40. Rxf5 {[%clk 0:01:24]}  gxf5 {[%clk 0:00:08]} 41. Kxh3 {[%clk 0:01:24]}  Kg6+ {[%clk 0:00:07]} 42. Kg3 {[%clk 0:01:24]}  f4+ {[%clk 0:00:07]} 43. Kf3 {[%clk 0:01:22]}  Kf5 {[%clk 0:00:05]} 44. Rxb7 {[%clk 0:01:22]}  g4+ {[%clk 0:00:05]} 45. Kg2 {[%clk 0:01:22]}  f3+ {[%clk 0:00:05]} 46. Kg1 {[%clk 0:01:19]}  g3 {[%clk 0:00:04]} 47. Rf7+ {[%clk 0:01:18]}  Ke5 {[%clk 0:00:03]} 48. Rxf3 {[%clk 0:01:18]}  Kxd6 {[%clk 0:00:03]} 49. Rxg3 {[%clk 0:01:18]}  Kc6 {[%clk 0:00:02]} 50. Rg6+ {[%clk 0:01:16]}  Kc5 {[%clk 0:00:00]} 51. Bxa6 {[%clk 0:01:15]} 1-0


[Site "https://www.chess.com"]

[Event "Titled Tuesday Blitz May 16 Late 2023"]
[White "Milovic, Aleksandra"]
[Black "Escalante Ramirez, Rafael"]
[WhiteFideId "933988"]
[BlackFideId "3900177"]
[WhiteElo "2000"]
[BlackElo "2244"]
[Result "1-0"]
[Round "08"]
[TimeControl "180+2"]
[Date "2023.05.16"]
[WhiteClock "0:00:03"]
[BlackClock "0:00:00"]

1. e4 {[%clk 0:03:00]}  c5 {[%clk 0:02:59]} 2. Nf3 {[%clk 0:03:00]}  e6 {[%clk 0:02:59]} 3. d4 {[%clk 0:03:00]}  cxd4 {[%clk 0:02:59]} 4. Nxd4 {[%clk 0:03:01]}  a6 {[%clk 0:02:59]} 5. Nc3 {[%clk 0:03:00]}  Qc7 {[%clk 0:02:59]} 6. Be2 {[%clk 0:03:00]}  b5 {[%clk 0:02:58]} 7. a3 {[%clk 0:02:59]}  Bb7 {[%clk 0:02:58]} 8. O-O {[%clk 0:02:58]}  Nf6 {[%clk 0:02:58]} 9. f3 {[%clk 0:02:57]}  Bd6 {[%clk 0:02:46]} 10. g3 {[%clk 0:02:46]}  Be7 {[%clk 0:02:39]} 11. Be3 {[%clk 0:02:41]}  d6 {[%clk 0:02:38]} 12. Kg2 {[%clk 0:02:41]}  Nbd7 {[%clk 0:02:37]} 13. Qd2 {[%clk 0:02:35]}  Rc8 {[%clk 0:02:33]} 14. Rad1 {[%clk 0:02:34]}  Nb6 {[%clk 0:02:30]} 15. Rfe1 {[%clk 0:02:21]}  O-O {[%clk 0:02:27]} 16. h4 {[%clk 0:02:15]}  Nc4 {[%clk 0:02:24]} 17. Bxc4 {[%clk 0:02:14]}  Qxc4 {[%clk 0:02:22]} 18. Rh1 {[%clk 0:02:14]}  Rfd8 {[%clk 0:02:20]} 19. g4 {[%clk 0:02:12]}  b4 {[%clk 0:02:10]} 20. axb4 {[%clk 0:02:12]}  Qxb4 {[%clk 0:02:08]} 21. g5 {[%clk 0:01:25]}  Nd7 {[%clk 0:02:05]} 22. Kh3 {[%clk 0:01:18]}  Ne5 {[%clk 0:02:00]} 23. Nd5 {[%clk 0:01:13]}  Qxd2 {[%clk 0:01:45]} 24. Nxe7+ {[%clk 0:01:13]}  Kf8 {[%clk 0:01:45]} 25. Rxd2 {[%clk 0:01:10]}  Kxe7 {[%clk 0:01:45]} 26. b3 {[%clk 0:01:08]}  Rc3 {[%clk 0:01:42]} 27. Re1 {[%clk 0:00:58]}  Rdc8 {[%clk 0:01:33]} 28. Kg3 {[%clk 0:00:58]}  g6 {[%clk 0:01:03]} 29. f4 {[%clk 0:00:53]}  Nd7 {[%clk 0:01:02]} 30. Kf2 {[%clk 0:00:24]}  Bxe4 {[%clk 0:00:57]} 31. Ree2 {[%clk 0:00:08]}  Nc5 {[%clk 0:00:53]} 32. b4 {[%clk 0:00:06]}  Nd7 {[%clk 0:00:49]} 33. Ke1 {[%clk 0:00:06]}  Bb7 {[%clk 0:00:48]} 34. Kd1 {[%clk 0:00:04]}  Ra3 {[%clk 0:00:47]} 35. Kc1 {[%clk 0:00:04]}  Ra1+ {[%clk 0:00:46]} 36. Kb2 {[%clk 0:00:05]}  Rh1 {[%clk 0:00:46]} 37. Bf2 {[%clk 0:00:04]}  Nb6 {[%clk 0:00:45]} 38. Kb3 {[%clk 0:00:03]}  Bd5+ {[%clk 0:00:44]} 39. Kb2 {[%clk 0:00:01]}  Nc4+ {[%clk 0:00:43]} 40. Kc3 {[%clk 0:00:02]}  Nxd2+ {[%clk 0:00:40]} 41. Kxd2 {[%clk 0:00:03]}  Rh2 {[%clk 0:00:37]} 42. Be1 {[%clk 0:00:03]}  Rxe2+ {[%clk 0:00:35]} 43. Nxe2 {[%clk 0:00:04]}  Rc4 {[%clk 0:00:33]} 44. c3 {[%clk 0:00:03]}  Be4 {[%clk 0:00:31]} 45. Nd4 {[%clk 0:00:03]}  Rc8 {[%clk 0:00:28]} 46. Ke3 {[%clk 0:00:03]}  Bd5 {[%clk 0:00:26]} 47. Bf2 {[%clk 0:00:02]}  Bc4 {[%clk 0:00:24]} 48. Kd2 {[%clk 0:00:03]}  Kd7 {[%clk 0:00:22]} 49. Be1 {[%clk 0:00:04]}  Ra8 {[%clk 0:00:22]} 50. Bf2 {[%clk 0:00:04]}  a5 {[%clk 0:00:20]} 51. bxa5 {[%clk 0:00:05]}  Rxa5 {[%clk 0:00:20]} 52. Ke3 {[%clk 0:00:05]}  Ra3 {[%clk 0:00:20]} 53. Kd2 {[%clk 0:00:04]}  Ra2+ {[%clk 0:00:20]} 54. Ke3 {[%clk 0:00:04]}  Bd5 {[%clk 0:00:19]} 55. Be1 {[%clk 0:00:03]}  e5 {[%clk 0:00:19]} 56. fxe5 {[%clk 0:00:03]}  dxe5 {[%clk 0:00:20]} 57. Nb5 {[%clk 0:00:03]}  Rb2 {[%clk 0:00:18]} 58. Na3 {[%clk 0:00:02]}  Rh2 {[%clk 0:00:16]} 59. Bg3 {[%clk 0:00:01]}  Rh3 {[%clk 0:00:15]} 60. Kf2 {[%clk 0:00:02]}  Rh1 {[%clk 0:00:14]} 61. c4 {[%clk 0:00:02]}  Bc6 {[%clk 0:00:12]} 62. Nc2 {[%clk 0:00:02]}  Rc1 {[%clk 0:00:11]} 63. Ne3 {[%clk 0:00:03]}  Ke6 {[%clk 0:00:11]} 64. Bh2 {[%clk 0:00:02]}  Rc3 {[%clk 0:00:10]} 65. Bg3 {[%clk 0:00:03]}  Bb7 {[%clk 0:00:10]} 66. Ke2 {[%clk 0:00:03]}  Ba6 {[%clk 0:00:10]} 67. Kd2 {[%clk 0:00:03]}  Ra3 {[%clk 0:00:10]} 68. c5 {[%clk 0:00:03]}  Bb7 {[%clk 0:00:09]} 69. Be1 {[%clk 0:00:02]}  Ra2+ {[%clk 0:00:09]} 70. Kd3 {[%clk 0:00:02]}  Rh2 {[%clk 0:00:08]} 71. Bc3 {[%clk 0:00:02]}  e4+ {[%clk 0:00:08]} 72. Kd4 {[%clk 0:00:02]}  Re2 {[%clk 0:00:07]} 73. Kc4 {[%clk 0:00:03]}  Rxe3 {[%clk 0:00:06]} 74. Bd4 {[%clk 0:00:03]}  Rd3 {[%clk 0:00:06]} 75. Bf2 {[%clk 0:00:02]}  Rd2 {[%clk 0:00:05]} 76. Be1 {[%clk 0:00:03]}  Re2 {[%clk 0:00:05]} 77. Bb4 {[%clk 0:00:03]}  Bc6 {[%clk 0:00:05]} 78. Ba5 {[%clk 0:00:03]}  Rh2 {[%clk 0:00:05]} 79. Kd4 {[%clk 0:00:04]}  Rxh4 {[%clk 0:00:05]} 80. Ke3 {[%clk 0:00:04]}  Rg4 {[%clk 0:00:05]} 81. Bd8 {[%clk 0:00:04]}  Rg3+ {[%clk 0:00:04]} 82. Kf2 {[%clk 0:00:03]}  Rf3+ {[%clk 0:00:04]} 83. Ke2 {[%clk 0:00:04]}  Kf5 {[%clk 0:00:05]} 84. Bf6 {[%clk 0:00:03]}  Kg4 {[%clk 0:00:04]} 85. Bd8 {[%clk 0:00:04]}  Rh3 {[%clk 0:00:04]} 86. Be7 {[%clk 0:00:04]}  Rh2+ {[%clk 0:00:04]} 87. Ke3 {[%clk 0:00:02]}  Rh3+ {[%clk 0:00:04]} 88. Kd4 {[%clk 0:00:03]}  e3 {[%clk 0:00:04]} 89. Kd3 {[%clk 0:00:03]}  Rg3 {[%clk 0:00:03]} 90. Ke2 {[%clk 0:00:03]}  Rh3 {[%clk 0:00:03]} 91. Bd6 {[%clk 0:00:04]}  Kf5 {[%clk 0:00:03]} 92. Be7 {[%clk 0:00:03]}  Ke4 {[%clk 0:00:02]} 93. Bd6 {[%clk 0:00:03]}  Rh4 {[%clk 0:00:02]} 94. Be7 {[%clk 0:00:03]}  Rh2+ {[%clk 0:00:01]} 95. Ke1 {[%clk 0:00:04]}  Kf3 {[%clk 0:00:00]} 96. Kd1 {[%clk 0:00:03]} 1-0


[Site "https://www.chess.com"]

[Event "Titled Tuesday Blitz May 16 Late 2023"]
[White "Curtis, John"]
[Black "Howell, David W L"]
[WhiteFideId "3200256"]
[BlackFideId "410608"]
[WhiteElo "2203"]
[BlackElo "2567"]
[Result "0-1"]
[Round "08"]
[TimeControl "180+2"]
[Date "2023.05.16"]
[WhiteClock "0:00:00"]
[BlackClock "0:00:08"]

1. d4 {[%clk 0:02:53]}  f5 {[%clk 0:02:45]} 2. Nf3 {[%clk 0:02:51]}  Nf6 {[%clk 0:02:38]} 3. g3 {[%clk 0:02:49]}  d6 {[%clk 0:02:32]} 4. Bg2 {[%clk 0:02:49]}  g6 {[%clk 0:02:32]} 5. O-O {[%clk 0:02:45]}  Bg7 {[%clk 0:02:33]} 6. c4 {[%clk 0:02:44]}  O-O {[%clk 0:02:33]} 7. Nc3 {[%clk 0:02:43]}  c6 {[%clk 0:02:30]} 8. d5 {[%clk 0:02:42]}  Na6 {[%clk 0:02:29]} 9. Nd4 {[%clk 0:02:41]}  c5 {[%clk 0:02:28]} 10. Nc2 {[%clk 0:02:26]}  Nc7 {[%clk 0:02:20]} 11. a4 {[%clk 0:02:14]}  Rb8 {[%clk 0:02:12]} 12. Na3 {[%clk 0:02:10]}  e5 {[%clk 0:02:03]} 13. dxe6 {[%clk 0:02:09]}  Bxe6 {[%clk 0:02:03]} 14. Bf4 {[%clk 0:02:03]}  Nfe8 {[%clk 0:01:52]} 15. Qd3 {[%clk 0:01:52]}  g5 {[%clk 0:01:33]} 16. Bd2 {[%clk 0:01:52]}  a6 {[%clk 0:01:23]} 17. Rad1 {[%clk 0:01:41]}  h6 {[%clk 0:01:14]} 18. b3 {[%clk 0:01:41]}  Qe7 {[%clk 0:01:09]} 19. Rfe1 {[%clk 0:01:16]}  b6 {[%clk 0:00:59]} 20. Nc2 {[%clk 0:01:04]}  Kh8 {[%clk 0:00:37]} 21. Ne3 {[%clk 0:01:02]}  Qf7 {[%clk 0:00:34]} 22. Ned5 {[%clk 0:01:01]}  Nxd5 {[%clk 0:00:32]} 23. Bxd5 {[%clk 0:00:55]}  Nc7 {[%clk 0:00:30]} 24. Bg2 {[%clk 0:00:49]}  Rbd8 {[%clk 0:00:28]} 25. Nd5 {[%clk 0:00:48]}  Nxd5 {[%clk 0:00:28]} 26. Bxd5 {[%clk 0:00:48]}  Bxd5 {[%clk 0:00:28]} 27. cxd5 {[%clk 0:00:48]}  a5 {[%clk 0:00:25]} 28. f3 {[%clk 0:00:45]}  Rde8 {[%clk 0:00:25]} 29. Kg2 {[%clk 0:00:38]}  Re7 {[%clk 0:00:25]} 30. e3 {[%clk 0:00:37]}  g4 {[%clk 0:00:24]} 31. fxg4 {[%clk 0:00:32]}  fxg4 {[%clk 0:00:24]} 32. Rf1 {[%clk 0:00:32]}  Qe8 {[%clk 0:00:25]} 33. Rxf8+ {[%clk 0:00:32]}  Qxf8 {[%clk 0:00:26]} 34. Rf1 {[%clk 0:00:31]}  Rf7 {[%clk 0:00:26]} 35. Rf4 {[%clk 0:00:29]}  Be5 {[%clk 0:00:23]} 36. Rf1 {[%clk 0:00:22]}  Kg7 {[%clk 0:00:20]} 37. e4 {[%clk 0:00:19]}  h5 {[%clk 0:00:20]} 38. Rxf7+ {[%clk 0:00:19]}  Qxf7 {[%clk 0:00:20]} 39. Qf1 {[%clk 0:00:19]}  Qg6 {[%clk 0:00:09]} 40. Qe2 {[%clk 0:00:18]}  Kf7 {[%clk 0:00:08]} 41. Be1 {[%clk 0:00:18]}  Ke7 {[%clk 0:00:09]} 42. Bf2 {[%clk 0:00:17]}  Kd8 {[%clk 0:00:09]} 43. Be1 {[%clk 0:00:15]}  Kc7 {[%clk 0:00:09]} 44. Bd2 {[%clk 0:00:15]}  Kb7 {[%clk 0:00:09]} 45. Be1 {[%clk 0:00:16]}  Qh7 {[%clk 0:00:09]} 46. Bf2 {[%clk 0:00:14]}  Qf7 {[%clk 0:00:09]} 47. Qd3 {[%clk 0:00:10]}  Qe8 {[%clk 0:00:09]} 48. Be3 {[%clk 0:00:10]}  b5 {[%clk 0:00:09]} 49. axb5 {[%clk 0:00:10]}  Kb6 {[%clk 0:00:09]} 50. Qf1 {[%clk 0:00:00]}  Qxb5 {[%clk 0:00:08]} 0-1


[Site "https://www.chess.com"]

[Event "Titled Tuesday Blitz May 16 Late 2023"]
[White "Powell, Paul"]
[Black "Hnydiuk, Aleksander"]
[WhiteFideId "2005840"]
[BlackFideId "1109057"]
[WhiteElo "2093"]
[BlackElo "2374"]
[Result "0-1"]
[Round "08"]
[TimeControl "180+2"]
[Date "2023.05.16"]
[WhiteClock "0:00:00"]
[BlackClock "0:00:04"]

1. d4 {[%clk 0:03:00]}  Nf6 {[%clk 0:02:47]} 2. Nf3 {[%clk 0:03:00]}  e6 {[%clk 0:02:47]} 3. Bf4 {[%clk 0:02:58]}  b6 {[%clk 0:02:34]} 4. e3 {[%clk 0:02:58]}  Nh5 {[%clk 0:02:32]} 5. Bg5 {[%clk 0:02:57]}  f6 {[%clk 0:02:32]} 6. Bh4 {[%clk 0:02:57]}  Bb7 {[%clk 0:02:10]} 7. Be2 {[%clk 0:02:56]}  g6 {[%clk 0:02:02]} 8. O-O {[%clk 0:02:50]}  Ng7 {[%clk 0:02:02]} 9. Bd3 {[%clk 0:02:45]}  g5 {[%clk 0:01:57]} 10. Bg3 {[%clk 0:02:44]}  h5 {[%clk 0:01:57]} 11. h3 {[%clk 0:02:44]}  Nf5 {[%clk 0:01:54]} 12. c4 {[%clk 0:02:34]}  g4 {[%clk 0:01:51]} 13. Nh4 {[%clk 0:02:01]}  Nxg3 {[%clk 0:01:40]} 14. Bg6+ {[%clk 0:01:56]}  Ke7 {[%clk 0:01:39]} 15. fxg3 {[%clk 0:01:56]}  Bh6 {[%clk 0:01:35]} 16. Qe2 {[%clk 0:01:49]}  f5 {[%clk 0:01:28]} 17. Bxf5 {[%clk 0:01:43]}  exf5 {[%clk 0:01:26]} 18. Nxf5+ {[%clk 0:01:43]}  Ke8 {[%clk 0:01:25]} 19. Nc3 {[%clk 0:01:27]}  Qg5 {[%clk 0:01:15]} 20. Nxh6 {[%clk 0:01:26]}  Qxh6 {[%clk 0:00:58]} 21. Rf5 {[%clk 0:01:00]}  Nc6 {[%clk 0:00:54]} 22. Raf1 {[%clk 0:00:44]}  Ne7 {[%clk 0:00:53]} 23. Rf6 {[%clk 0:00:39]}  Qg5 {[%clk 0:00:49]} 24. h4 {[%clk 0:00:36]}  Qg7 {[%clk 0:00:48]} 25. Nb5 {[%clk 0:00:30]}  Rc8 {[%clk 0:00:34]} 26. Nxa7 {[%clk 0:00:26]}  Ra8 {[%clk 0:00:35]} 27. Nb5 {[%clk 0:00:25]}  Rc8 {[%clk 0:00:35]} 28. d5 {[%clk 0:00:20]}  d6 {[%clk 0:00:28]} 29. b4 {[%clk 0:00:16]}  Kd7 {[%clk 0:00:25]} 30. Rf7 {[%clk 0:00:15]}  Qe5 {[%clk 0:00:24]} 31. Nd4 {[%clk 0:00:12]}  Rce8 {[%clk 0:00:23]} 32. Qf2 {[%clk 0:00:07]}  Kc8 {[%clk 0:00:22]} 33. b5 {[%clk 0:00:06]}  Kb8 {[%clk 0:00:20]} 34. Nc6+ {[%clk 0:00:06]}  Nxc6 {[%clk 0:00:18]} 35. bxc6 {[%clk 0:00:06]}  Bc8 {[%clk 0:00:17]} 36. Re1 {[%clk 0:00:06]}  Qe4 {[%clk 0:00:12]} 37. Rf4 {[%clk 0:00:06]}  Qe7 {[%clk 0:00:11]} 38. e4 {[%clk 0:00:06]}  Rhf8 {[%clk 0:00:11]} 39. Rxf8 {[%clk 0:00:05]}  Rxf8 {[%clk 0:00:11]} 40. Qe2 {[%clk 0:00:05]}  Qe5 {[%clk 0:00:10]} 41. Rf1 {[%clk 0:00:05]}  Rxf1+ {[%clk 0:00:09]} 42. Qxf1 {[%clk 0:00:05]}  Qxg3 {[%clk 0:00:09]} 43. Qf2 {[%clk 0:00:05]}  Qxf2+ {[%clk 0:00:07]} 44. Kxf2 {[%clk 0:00:06]}  Ba6 {[%clk 0:00:06]} 45. a3 {[%clk 0:00:04]}  Bxc4 {[%clk 0:00:06]} 46. g3 {[%clk 0:00:04]}  Kc8 {[%clk 0:00:05]} 47. Ke3 {[%clk 0:00:05]}  Kd8 {[%clk 0:00:04]} 48. Kd4 {[%clk 0:00:05]}  b5 {[%clk 0:00:03]} 49. Ke3 {[%clk 0:00:04]}  Ke7 {[%clk 0:00:02]} 50. Kf4 {[%clk 0:00:05]}  Kf6 {[%clk 0:00:03]} 51. Ke3 {[%clk 0:00:02]}  Bb3 {[%clk 0:00:03]} 52. Kf4 {[%clk 0:00:01]}  Ba4 {[%clk 0:00:03]} 53. Ke3 {[%clk 0:00:02]}  Ke5 {[%clk 0:00:04]} 54. Kd3 {[%clk 0:00:02]}  Bb3 {[%clk 0:00:04]} 55. Ke3 {[%clk 0:00:00]}  Bc2 {[%clk 0:00:04]} 0-1


[Site "https://www.chess.com"]

[Event "Titled Tuesday Blitz May 16 Late 2023"]
[White "Einarsson, Halldor Gretar"]
[Black "Stead, Kerry"]
[WhiteFideId "2300150"]
[BlackFideId "3202577"]
[WhiteElo "2110"]
[BlackElo "1997"]
[Result "1-0"]
[Round "08"]
[TimeControl "180+2"]
[Date "2023.05.16"]
[WhiteClock "0:01:39"]
[BlackClock "0:00:26"]

1. d4 {[%clk 0:02:59]}  c5 {[%clk 0:02:11]} 2. d5 {[%clk 0:02:57]}  f5 {[%clk 0:02:11]} 3. g4 {[%clk 0:02:47]}  fxg4 {[%clk 0:02:08]} 4. e4 {[%clk 0:02:47]}  d6 {[%clk 0:02:06]} 5. h3 {[%clk 0:02:43]}  gxh3 {[%clk 0:02:05]} 6. Nxh3 {[%clk 0:02:41]}  Nf6 {[%clk 0:02:02]} 7. Ng5 {[%clk 0:02:32]}  h6 {[%clk 0:01:59]} 8. Bd3 {[%clk 0:02:23]}  Rg8 {[%clk 0:01:51]} 9. Ne6 {[%clk 0:01:58]}  Bxe6 {[%clk 0:01:40]} 10. dxe6 {[%clk 0:01:57]}  Qb6 {[%clk 0:01:34]} 11. e5 {[%clk 0:01:49]}  g5 {[%clk 0:00:36]} 12. exf6 {[%clk 0:01:43]}  exf6 {[%clk 0:00:35]} 13. Qh5+ {[%clk 0:01:41]}  Kd8 {[%clk 0:00:30]} 14. Qf7 {[%clk 0:01:40]}  Rh8 {[%clk 0:00:26]} 15. Qxf6+ {[%clk 0:01:39]} 1-0


[Site "https://www.chess.com"]

[Event "Titled Tuesday Blitz May 16 Late 2023"]
[White "Winkels, Marcel"]
[Black "Dmitriev, Sergey"]
[WhiteFideId "1003887"]
[BlackFideId "14101785"]
[WhiteElo "1900"]
[BlackElo "2132"]
[Result "1-0"]
[Round "08"]
[TimeControl "180+2"]
[Date "2023.05.16"]
[WhiteClock "0:00:05"]
[BlackClock "0:00:00"]

1. d4 {[%clk 0:03:00]}  d6 {[%clk 0:02:59]} 2. Nc3 {[%clk 0:03:01]}  g6 {[%clk 0:02:59]} 3. e4 {[%clk 0:03:01]}  Bg7 {[%clk 0:02:59]} 4. h4 {[%clk 0:03:00]}  h5 {[%clk 0:02:58]} 5. Nf3 {[%clk 0:02:58]}  Bg4 {[%clk 0:02:52]} 6. Be2 {[%clk 0:02:57]}  Nf6 {[%clk 0:02:48]} 7. Ng5 {[%clk 0:02:56]}  Bxe2 {[%clk 0:02:44]} 8. Qxe2 {[%clk 0:02:56]}  O-O {[%clk 0:02:43]} 9. Be3 {[%clk 0:02:51]}  e5 {[%clk 0:02:41]} 10. f3 {[%clk 0:02:48]}  Nc6 {[%clk 0:02:38]} 11. d5 {[%clk 0:02:37]}  Nd4 {[%clk 0:02:36]} 12. Qd2 {[%clk 0:02:36]}  c5 {[%clk 0:02:33]} 13. dxc6 {[%clk 0:02:27]}  Nxc6 {[%clk 0:02:22]} 14. O-O {[%clk 0:02:15]}  Qe7 {[%clk 0:02:15]} 15. Rad1 {[%clk 0:02:14]}  Rfd8 {[%clk 0:02:15]} 16. Ne2 {[%clk 0:02:12]}  Rac8 {[%clk 0:02:07]} 17. c3 {[%clk 0:02:12]}  Na5 {[%clk 0:02:04]} 18. b3 {[%clk 0:01:58]}  Rd7 {[%clk 0:01:50]} 19. Bxa7 {[%clk 0:01:48]}  Nc6 {[%clk 0:01:34]} 20. Bb6 {[%clk 0:01:43]}  Ra8 {[%clk 0:01:33]} 21. a4 {[%clk 0:01:34]}  Bh6 {[%clk 0:01:32]} 22. Be3 {[%clk 0:01:33]}  Na5 {[%clk 0:01:23]} 23. Qc2 {[%clk 0:01:16]}  Nh7 {[%clk 0:01:19]} 24. b4 {[%clk 0:00:48]}  Nc4 {[%clk 0:01:14]} 25. Bc1 {[%clk 0:00:47]}  Nxg5 {[%clk 0:01:11]} 26. hxg5 {[%clk 0:00:46]}  Bxg5 {[%clk 0:01:11]} 27. f4 {[%clk 0:00:29]}  exf4 {[%clk 0:01:07]} 28. Nxf4 {[%clk 0:00:28]}  Bxf4 {[%clk 0:00:57]} 29. Bxf4 {[%clk 0:00:27]}  Ne5 {[%clk 0:00:56]} 30. Rd5 {[%clk 0:00:25]}  Ng4 {[%clk 0:00:46]} 31. Rfd1 {[%clk 0:00:20]}  Qh4 {[%clk 0:00:45]} 32. Qd2 {[%clk 0:00:16]}  Rad8 {[%clk 0:00:37]} 33. g3 {[%clk 0:00:15]}  Qh3 {[%clk 0:00:32]} 34. Qg2 {[%clk 0:00:14]}  Qxg2+ {[%clk 0:00:30]} 35. Kxg2 {[%clk 0:00:14]}  f6 {[%clk 0:00:28]} 36. Kf3 {[%clk 0:00:14]}  g5 {[%clk 0:00:27]} 37. Bxd6 {[%clk 0:00:13]}  Nh2+ {[%clk 0:00:22]} 38. Kg2 {[%clk 0:00:13]}  Ng4 {[%clk 0:00:22]} 39. R1d3 {[%clk 0:00:12]}  Kf7 {[%clk 0:00:16]} 40. Bc5 {[%clk 0:00:11]}  Ke6 {[%clk 0:00:12]} 41. Rxd7 {[%clk 0:00:11]}  Rxd7 {[%clk 0:00:13]} 42. Rxd7 {[%clk 0:00:11]}  Kxd7 {[%clk 0:00:13]} 43. Kf3 {[%clk 0:00:11]}  Ne5+ {[%clk 0:00:12]} 44. Ke3 {[%clk 0:00:09]}  Ng4+ {[%clk 0:00:09]} 45. Kd3 {[%clk 0:00:09]}  Ne5+ {[%clk 0:00:09]} 46. Kc2 {[%clk 0:00:08]}  Nc4 {[%clk 0:00:09]} 47. Kb3 {[%clk 0:00:08]}  Ne5 {[%clk 0:00:09]} 48. b5 {[%clk 0:00:08]}  Nd3 {[%clk 0:00:08]} 49. Bd4 {[%clk 0:00:08]}  Ne1 {[%clk 0:00:07]} 50. Bxf6 {[%clk 0:00:07]}  g4 {[%clk 0:00:06]} 51. Bg5 {[%clk 0:00:07]}  Nd3 {[%clk 0:00:06]} 52. Be3 {[%clk 0:00:07]}  Ne5 {[%clk 0:00:05]} 53. Bf4 {[%clk 0:00:06]}  Nf7 {[%clk 0:00:05]} 54. e5 {[%clk 0:00:07]}  Nd8 {[%clk 0:00:05]} 55. a5 {[%clk 0:00:07]}  Kc8 {[%clk 0:00:03]} 56. Kb4 {[%clk 0:00:07]}  Ne6 {[%clk 0:00:04]} 57. c4 {[%clk 0:00:07]}  Nd4 {[%clk 0:00:03]} 58. c5 {[%clk 0:00:08]}  Nc2+ {[%clk 0:00:03]} 59. Ka4 {[%clk 0:00:07]}  Ne1 {[%clk 0:00:02]} 60. b6 {[%clk 0:00:07]}  Nd3 {[%clk 0:00:02]} 61. Bg5 {[%clk 0:00:06]}  h4 {[%clk 0:00:00]} 62. Bxh4 {[%clk 0:00:05]} 1-0


[Site "https://www.chess.com"]